[Event "Charlotte Open 2024"]
[Site "Charlotte"]
[Date "2024.01.13"]
[Round "1.1"]
[White "Brady, Tyson"]
[Black "Zhou, Jianchao"]
[Result "0-1"]
[ECO "B81"]
[WhiteElo "2063"]
[BlackElo "2562"]
[Annotator "ChessBase"]
[PlyCount "62"]
[EventDate "2024.01.05"]
[EventType "swiss"]
[EventCountry "USA"]
[SourceTitle "playchess.com"]
[Source "ChessBase"]
[SourceQuality "1"]
[TimeControl "6600+10"]

1. e4 {[%emt 0:00:03]} c5 {[%emt 0:08:38]} 2. Nf3 {[%emt 0:00:10]} d6 {[%emt 0:00:43]} 3. d4 {[%emt 0:00:07]} cxd4 {[%emt 0:00:04]} 4. Nxd4 {[%emt 0:00:06]} Nf6 {[%emt 0:00:05]} 5. Nc3 {[%emt 0:00:09]} a6 {[%emt 0:00:12]} 6. h3 {[%emt 0:00:17]} e6 {[%emt 0:00:13]} 7. g4 {[%emt 0:00:16]} h6 {[%emt 0:00:06]} 8. Bg2 {[%emt 0:00:30]} Be7 {[%emt 0:00:18]} 9. Be3 {[%emt 0:02:51]} Nc6 {[%emt 0:00:06]} 10. Qe2 {[%emt 0:07:10]} Nxd4 {[%emt 0:03:49]} 11. Bxd4 {[%emt 0:00:08]} e5 {[%emt 0:00:15]} 12. Be3 {[%emt 0:00:23]} b5 {[%emt 0:00:06]} 13. O-O-O {[%emt 0:04:33]} b4 {[%emt 0:00:44]} 14. Nd5 {[%emt 0:02:58]} Nxd5 {[%emt 0:08:17]} 15. exd5 {[%emt 0:00:06]} O-O {[%emt 0:12:23]} 16. Be4 {[%emt 0:03:56]} Bg5 {[%emt 0:04:46]} 17. Kb1 {[%emt 0:14:24]} a5 {[%emt 0:07:15]} 18. Rdg1 {[%emt 0:09:14]} Bxe3 {[%emt 0:03:04]} 19. Qxe3 {[%emt 0:08:05]} Qg5 {[%emt 0:01:38]} 20. Qb6 {[%emt 0:05:07]} Ra6 {[%emt 0:01:54]} 21. Qc7 {[%emt 0:00:43]} Qd8 {[%emt 0:01:44]} 22. Qc4 {[%emt 0:02:26]} Ra7 {[%emt 0:01:12]} 23. h4 {[%emt 0:01:13]} f5 {[%emt 0:02:06]} 24. gxf5 {[%emt 0:04:21]} Bxf5 {[%emt 0:00:09]} 25. Rh2 {[%emt 0:01:14]} Rc7 {[%emt 0:01:54]} 26. Qd3 {[%emt 0:00:37]} Bxe4 {[%emt 0:03:25]} 27. Qxe4 {[%emt 0:00:07]} Rf4 {[%emt 0:01:35]} 28. Qg6 {[%emt 0:03:24]} Qf6 {[%emt 0:03:24]} 29. Qe8+ {[%emt 0:01:33]} Kh7 {[%emt 0:02:59]} 30. Rhg2 {[%emt 0:07:49]} Qf5 {[%emt 0:03:28]} 31. Qc6 {[%emt 0:03:13]} Rxf2 {[%emt 0:01:16]} 0-1

[Event "Charlotte Open 2024"]
[Site "Charlotte"]
[Date "2024.01.13"]
[Round "1.2"]
[White "Sadorra, Julio Catalino"]
[Black "Yan, Benjamin"]
[Result "1/2-1/2"]
[ECO "D11"]
[WhiteElo "2554"]
[BlackElo "2025"]
[Annotator "ChessBase"]
[PlyCount "54"]
[EventDate "2024.01.05"]
[EventType "swiss"]
[EventCountry "USA"]
[SourceTitle "playchess.com"]
[Source "ChessBase"]
[SourceQuality "1"]
[TimeControl "6600+10"]

1. d4 {[%emt 0:01:56]} d5 {[%emt 0:08:39]} 2. c4 {[%emt 0:01:16]} c6 {[%emt 0:00:07]} 3. Nf3 {[%emt 0:00:26]} Nf6 {[%emt 1:41:54]} 4. g3 {[%emt 0:00:24]} Bf5 {[%emt 0:00:00]} 5. Nc3 {[%emt 0:00:24]} e6 {[%emt 0:00:00]} 6. Nh4 {[%emt 0:00:42]} Be4 {[%emt 0:00:00]} 7. f3 {[%emt 0:02:00]} Bg6 {[%emt 0:00:00]} 8. Qb3 {[%emt 0:02:44]} Qb6 {[%emt 0:00:00]} 9. Nxg6 {[%emt 0:03:30]} hxg6 {[%emt 0:00:00]} 10. c5 {[%emt 0:00:03]} Qxb3 {[%emt 0:00:00]} 11. axb3 {[%emt 0:00:09]} Na6 {[%emt 0:00:00]} 12. Bf4 {[%emt 0:15:30]} Nd7 {[%emt 0:00:00]} 13. e4 {[%emt 0:16:00]} Nb4 {[%emt 0:00:00]} 14. Kd2 {[%emt 0:13:43]} e5 {[%emt 0:00:00]} 15. Bxe5 {[%emt 0:00:11]} Nxe5 {[%emt 0:02:00]} 16. dxe5 {[%emt 0:00:02]} Bxc5 {[%emt 0:00:00]} 17. exd5 {[%emt 0:00:04]} Nxd5 {[%emt 0:00:00]} 18. Nxd5 {[%emt 0:02:40]} O-O-O {[%emt 0:00:00]} 19. Bc4 {[%emt 0:00:31]} cxd5 {[%emt 0:00:00]} 20. Bd3 {[%emt 0:01:24]} Kb8 {[%emt 0:00:00]} 21. f4 {[%emt 0:00:14]} g5 {[%emt 0:00:00]} 22. fxg5 {[%emt 0:03:52]} Rde8 {[%emt 0:00:00]} 23. Raf1 {[%emt 0:00:57]} Rxe5 {[%emt 0:00:00]} 24. h4 {[%emt 0:00:11]} Bb4+ {[%emt 0:00:00]} 25. Kc2 {[%emt 0:05:24]} Re3 {[%emt 0:00:00]} 26. Bf5 {[%emt 0:00:43]} Rxg3 {[%emt 0:00:00]} 27. Rd1 {[%emt 0:01:21]} Rd8 {[%emt 0:00:00]} 1/2-1/2

[Event "Charlotte Open 2024"]
[Site "Charlotte"]
[Date "2024.01.13"]
[Round "1.3"]
[White "Karthik, Advaith"]
[Black "Cordova, Emilio"]
[Result "0-1"]
[ECO "A90"]
[WhiteElo "2124"]
[BlackElo "2563"]
[Annotator "ChessBase"]
[PlyCount "82"]
[EventDate "2024.01.05"]
[EventType "swiss"]
[EventCountry "USA"]
[SourceTitle "playchess.com"]
[Source "ChessBase"]
[SourceQuality "1"]
[TimeControl "6600+10"]

1. d4 {[%emt 0:00:03]} e6 {[%emt 0:07:56]} 2. c4 {[%emt 0:00:29]} Bb4+ {[%emt 0:00:38]} 3. Bd2 {[%emt 0:01:47]} Bxd2+ {[%emt 0:00:35]} 4. Qxd2 {[%emt 0:00:08]} f5 {[%emt 0:00:06]} 5. g3 {[%emt 0:02:12]} Nf6 {[%emt 0:00:27]} 6. Nc3 {[%emt 0:01:08]} O-O {[%emt 0:00:59]} 7. Bg2 {[%emt 0:01:27]} d6 {[%emt 0:00:42]} 8. Nf3 {[%emt 0:00:22]} Qe7 {[%emt 0:01:15]} 9. O-O {[%emt 0:00:58]} c6 {[%emt 0:01:17]} 10. Rfe1 {[%emt 0:15:14]} e5 {[%emt 0:04:40]} 11. c5 {[%emt 0:00:38]} e4 {[%emt 0:02:34]} 12. cxd6 {[%emt 0:00:07]} Qxd6 {[%emt 0:00:09]} 13. Ne5 {[%emt 0:00:03]} Be6 {[%emt 0:01:03]} 14. f4 {[%emt 0:06:49]} c5 {[%emt 0:12:12]} 15. e3 {[%emt 0:10:28]} Rd8 {[%emt 0:04:00]} 16. Red1 {[%emt 0:01:43]} Nc6 {[%emt 0:02:23]} 17. Qe1 {[%emt 0:23:31]} Qe7 {[%emt 0:24:31]} 18. Ne2 {[%emt 0:08:08]} Nb4 {[%emt 0:13:56]} 19. Qc3 {[%emt 0:05:20]} c4 {[%emt 0:07:59]} 20. Qd2 {[%emt 0:05:47]} Rac8 {[%emt 0:04:02]} 21. Nc3 {[%emt 0:01:48]} a6 {[%emt 0:00:15]} 22. Qe2 {[%emt 0:05:05]} Nd3 {[%emt 0:01:07]} 23. g4 {[%emt 0:02:52]} b5 {[%emt 0:03:28]} 24. a3 {[%emt 0:00:27]} Nxe5 {[%emt 0:02:07]} 25. fxe5 {[%emt 0:01:08]} Nxg4 {[%emt 0:00:06]} 26. d5 {[%emt 0:01:06]} Bf7 {[%emt 0:01:16]} 27. e6 {[%emt 0:00:06]} Bh5 {[%emt 0:00:15]} 28. Qe1 {[%emt 0:02:31]} Qg5 {[%emt 0:01:13]} 29. Qg3 {[%emt 0:01:38]} Qxe3+ {[%emt 0:00:15]} 30. Qxe3 {[%emt 0:00:26]} Nxe3 {[%emt 0:00:05]} 31. Rd2 {[%emt 0:00:04]} Rd6 {[%emt 0:00:26]} 32. Re1 {[%emt 0:01:19]} Nxg2 {[%emt 0:01:06]} 33. Kxg2 {[%emt 0:00:02]} Bf3+ {[%emt 0:00:21]} 34. Kg3 {[%emt 0:00:08]} g5 {[%emt 0:00:15]} 35. Kf2 {[%emt 0:00:55]} Kg7 {[%emt 0:01:03]} 36. Ke3 {[%emt 0:00:14]} Re8 {[%emt 0:00:29]} 37. Rg1 {[%emt 0:01:55]} h6 {[%emt 0:01:05]} 38. h4 {[%emt 0:00:25]} Kg6 {[%emt 0:00:30]} 39. hxg5 {[%emt 0:01:36]} hxg5 {[%emt 0:09:54]} 40. Ne2 {[%emt 0:00:12]} Kf6 {[%emt 0:00:00]} 41. Kd4 {[%emt 0:00:51]} Rxd5+ {[%emt 0:00:00]} 0-1

[Event "Charlotte Open 2024"]
[Site "Charlotte"]
[Date "2024.01.13"]
[Round "1.4"]
[White "Kantor, Gergely"]
[Black "Ligotti, John J"]
[Result "1-0"]
[ECO "D38"]
[WhiteElo "2531"]
[BlackElo "1864"]
[Annotator "RC"]
[PlyCount "79"]
[EventDate "2024.01.05"]
[EventType "swiss"]
[EventCountry "USA"]
[SourceTitle "playchess.com"]
[Source "ChessBase"]
[SourceQuality "1"]
[TimeControl "6600+10"]

1. d4 {[%emt 0:00:20]} Nf6 {[%emt 0:01:43]} 2. c4 {[%emt 0:00:20]} e6 {[%emt 0:00:48]} 3. Nf3 {[%emt 0:00:22]} d5 {[%emt 0:00:47]} 4. Nc3 {[%emt 0:00:41]} Bb4 {[%emt 0:00:44]} 5. Bg5 {[%emt 0:02:19]} h6 {[%emt 0:01:07]} 6. Bxf6 {[%emt 0:01:40]} Qxf6 {[%emt 0:00:57]} 7. Qa4+ {[%emt 0:00:21]} Nc6 {[%emt 0:00:14]} 8. e3 {[%emt 0:00:04]} Bd7 {[%emt 0:07:19]} 9. Qc2 {[%emt 0:10:19]} O-O {[%emt 0:07:28]} 10. a3 {[%emt 0:02:57]} Bxc3+ {[%emt 0:00:56]} 11. Qxc3 {[%emt 0:00:05]} Rfe8 {[%emt 0:09:37]} 12. Be2 {[%emt 0:04:28]} dxc4 {[%emt 0:08:14]} 13. Qxc4 {[%emt 0:00:35]} Rac8 {[%emt 0:07:52]} 14. Rd1 {[%emt 0:04:23]} Re7 {[%emt 0:25:02]} 15. O-O {[%emt 0:12:28]} e5 {[%emt 0:06:32]} 16. d5 {[%emt 0:01:38]} Nd8 {[%emt 0:02:14]} 17. Nd2 {[%emt 0:01:36]} Bf5 {[%emt 0:05:25]} 18. Bg4 {[%emt 0:06:40]} Bxg4 {[%emt 0:08:31]} 19. Qxg4 {[%emt 0:00:05]} Rb8 {[%emt 0:00:05]} 20. Ne4 {[%emt 0:01:51]} Qg6 {[%emt 0:01:27]} 21. Qxg6 {[%emt 0:05:27]} fxg6 {[%emt 0:00:02]} 22. d6 {[%emt 0:05:07]} Rd7 {[%emt 0:03:13]} 23. dxc7 {[%emt 0:04:47]} Rxc7 {[%emt 0:00:03]} 24. Rd6 {[%emt 0:00:04]} g5 {[%emt 0:06:57]} 25. Rfd1 {[%emt 0:04:58]} Nf7 {[%emt 0:00:38]} 26. R6d2 {[%emt 0:01:04]} Rbc8 {[%emt 0:00:16]} 27. Nc3 {[%emt 0:00:13]} Kf8 {[%emt 0:00:36]} 28. g4 {[%emt 0:01:08]} a6 {[%emt 0:00:27]} 29. Kg2 {[%emt 0:00:54]} Ke8 {[%emt 0:00:26]} 30. h3 {[%emt 0:01:00]} Rd8 {[%emt 0:00:21]} 31. Rxd8+ {[%emt 0:01:34]} Nxd8 {[%emt 0:00:01]} 32. Rd5 {[%emt 0:01:32]} Nc6 {[%emt 0:00:23]} 33. Ne4 {[%emt 0:02:54]} Ke7 {[%emt 0:01:54]} 34. Nc5 {[%emt 0:00:27]} a5 {[%emt 0:00:32]} 35. Kf3 {[%emt 0:00:44]} Kf6 {[%emt 0:02:52]} 36. Ke4 {[%emt 0:00:18]} b6 {[%emt 0:00:14]} 37. Nd7+ {[%emt 0:00:49]} Ke6 {[%emt 0:00:02]} 38. Nxb6 {[%emt 0:00:17]} Rf7 {[%emt 0:00:15]} 39. Nc4 {[%emt 0:00:27]} Rxf2 {[%emt 0:00:07]} 40. Rd6+ {[%emt 0:00:03]} 1-0

[Event "Charlotte Open 2024"]
[Site "Charlotte"]
[Date "2024.01.13"]
[Round "1.5"]
[White "Myers, Dominique"]
[Black "Brodsky, David"]
[Result "0-1"]
[ECO "B92"]
[WhiteElo "2028"]
[BlackElo "2492"]
[Annotator "RC"]
[PlyCount "78"]
[EventDate "2024.01.05"]
[EventType "swiss"]
[EventCountry "USA"]
[SourceTitle "playchess.com"]
[Source "ChessBase"]
[SourceQuality "1"]
[TimeControl "6600+10"]

1. e4 {[%emt 0:08:58]} c5 {[%emt 0:00:04]} 2. Nf3 {[%emt 0:00:09]} d6 {[%emt 0:00:05]} 3. d4 {[%emt 0:00:06]} cxd4 {[%emt 0:00:04]} 4. Nxd4 {[%emt 0:00:06]} Nf6 {[%emt 0:00:03]} 5. Nc3 {[%emt 0:00:11]} a6 {[%emt 0:00:03]} 6. Be2 {[%emt 0:00:10]} e5 {[%emt 0:00:06]} 7. Nb3 {[%emt 0:00:07]} Be7 {[%emt 0:00:14]} 8. O-O {[%emt 0:00:10]} O-O {[%emt 0:00:06]} 9. Qd3 {[%emt 0:00:06]} Be6 {[%emt 0:02:05]} 10. Bd2 {[%emt 0:00:15]} Nbd7 {[%emt 0:06:31]} 11. Nd5 {[%emt 0:01:28]} Bxd5 {[%emt 0:02:27]} 12. exd5 {[%emt 0:00:09]} Rc8 {[%emt 0:00:27]} 13. c4 {[%emt 0:00:16]} b6 {[%emt 0:03:52]} 14. a4 {[%emt 0:06:08]} a5 {[%emt 0:00:24]} 15. Rac1 {[%emt 0:08:55]} Ne8 {[%emt 0:05:29]} 16. Qh3 {[%emt 0:20:39]} Rc7 {[%emt 0:25:07]} 17. Bd3 {[%emt 0:17:14]} g6 {[%emt 0:05:48]} 18. Bh6 {[%emt 0:08:01]} Ng7 {[%emt 0:01:42]} 19. g4 {[%emt 0:01:15]} Bg5 {[%emt 0:02:15]} 20. Rc3 {[%emt 0:03:56]} Nc5 {[%emt 0:13:49]} 21. Nxc5 {[%emt 0:02:40]} bxc5 {[%emt 0:00:08]} 22. Bc2 {[%emt 0:00:46]} Rb7 {[%emt 0:06:04]} 23. b3 {[%emt 0:00:39]} Qf6 {[%emt 0:06:16]} 24. Rf3 {[%emt 0:03:41]} Qe7 {[%emt 0:01:16]} 25. Re1 {[%emt 0:01:46]} Rfb8 {[%emt 0:01:12]} 26. Kg2 {[%emt 0:03:28]} Ne8 {[%emt 0:01:09]} 27. Re2 {[%emt 0:01:41]} Rd7 {[%emt 0:04:39]} 28. Rg3 {[%emt 0:04:00]} Qf6 {[%emt 0:02:06]} 29. Rf3 {[%emt 0:00:50]} Qd8 {[%emt 0:00:23]} 30. Rd3 {[%emt 0:05:26]} Nc7 {[%emt 0:00:37]} 31. Rd1 {[%emt 0:00:47]} Na6 {[%emt 0:00:53]} 32. Rde1 {[%emt 0:02:06]} Rdb7 {[%emt 0:03:09]} 33. Re4 {[%emt 0:01:50]} Nb4 {[%emt 0:04:13]} 34. Bb1 {[%emt 0:00:07]} Nxd5 {[%emt 0:02:37]} 35. Bxg5 {[%emt 0:00:41]} Qxg5 {[%emt 0:00:07]} 36. cxd5 {[%emt 0:00:32]} Rxb3 {[%emt 0:00:04]} 37. f4 {[%emt 0:03:02]} exf4 {[%emt 0:01:49]} 38. Re8+ {[%emt 0:03:46]} Kg7 {[%emt 0:00:04]} 39. Rxb8 {[%emt 0:00:11]} Qxd5+ {[%emt 0:00:10]} 0-1

[Event "Charlotte Open 2024"]
[Site "Charlotte"]
[Date "2024.01.13"]
[Round "1.6"]
[White "Cruz, Cristhian"]
[Black "Gangavarapu, Sreekar"]
[Result "1-0"]
[ECO "A38"]
[WhiteElo "2498"]
[BlackElo "2125"]
[Annotator "RC"]
[PlyCount "59"]
[EventDate "2024.01.05"]
[EventType "swiss"]
[EventCountry "USA"]
[SourceTitle "playchess.com"]
[Source "ChessBase"]
[SourceQuality "1"]
[TimeControl "6600+10"]

1. Nf3 {[%emt 0:07:26]} Nf6 {[%emt 0:00:08]} 2. c4 {[%emt 0:00:11]} g6 {[%emt 0:00:13]} 3. g3 {[%emt 0:00:38]} Bg7 {[%emt 0:00:26]} 4. Bg2 {[%emt 0:00:06]} O-O {[%emt 0:00:24]} 5. O-O {[%emt 0:00:19]} d6 {[%emt 0:00:17]} 6. Nc3 {[%emt 0:00:51]} c5 {[%emt 0:00:12]} 7. a3 {[%emt 0:01:39]} Nc6 {[%emt 0:04:45]} 8. Rb1 {[%emt 0:01:44]} e5 {[%emt 0:01:22]} 9. d3 {[%emt 0:00:50]} h6 {[%emt 0:09:28]} 10. b4 {[%emt 0:03:52]} cxb4 {[%emt 0:07:42]} 11. axb4 {[%emt 0:00:11]} Be6 {[%emt 0:00:30]} 12. b5 {[%emt 0:08:20]} Ne7 {[%emt 0:03:29]} 13. Bb2 {[%emt 0:06:26]} Qd7 {[%emt 0:07:11]} 14. c5 {[%emt 0:09:19]} dxc5 {[%emt 0:18:01]} 15. Nxe5 {[%emt 0:00:09]} Qc7 {[%emt 0:00:07]} 16. Nc4 {[%emt 0:00:13]} Nfd5 {[%emt 0:23:02]} 17. Qc1 {[%emt 0:04:57]} Rad8 {[%emt 0:07:15]} 18. Nxd5 {[%emt 0:10:47]} Bxd5 {[%emt 0:00:13]} 19. Bxg7 {[%emt 0:01:57]} Kxg7 {[%emt 0:00:14]} 20. b6 {[%emt 0:00:44]} axb6 {[%emt 0:00:14]} 21. Rxb6 {[%emt 0:06:05]} Bxg2 {[%emt 0:03:24]} 22. Kxg2 {[%emt 0:00:57]} Kh7 {[%emt 0:07:12]} 23. Qb2 {[%emt 0:00:42]} Nf5 {[%emt 0:00:58]} 24. Rb1 {[%emt 0:02:21]} Nd4 {[%emt 0:04:46]} 25. e3 {[%emt 0:05:03]} Ne6 {[%emt 0:00:34]} 26. Qf6 {[%emt 0:01:07]} Rb8 {[%emt 0:07:05]} 27. Ne5 {[%emt 0:01:37]} Qd8 {[%emt 0:00:40]} 28. Qxd8 {[%emt 0:00:50]} Rbxd8 {[%emt 0:00:06]} 29. Rxb7 {[%emt 0:00:08]} Kg8 {[%emt 0:00:58]} 30. Nd7 {[%emt 0:00:14]} 1-0

[Event "Charlotte Open 2024"]
[Site "Charlotte"]
[Date "2024.01.13"]
[Round "1.7"]
[White "Peatman, Carter"]
[Black "Troff, Kayden"]
[Result "0-1"]
[ECO "B23"]
[WhiteElo "2022"]
[BlackElo "2484"]
[Annotator "RC"]
[PlyCount "70"]
[EventDate "2024.01.05"]
[EventType "swiss"]
[EventCountry "USA"]
[SourceTitle "playchess.com"]
[Source "ChessBase"]
[SourceQuality "1"]
[TimeControl "6600+10"]

1. e4 {[%emt 0:00:59]} c5 {[%emt 0:00:08]} 2. Nc3 {[%emt 0:00:05]} g6 {[%emt 0:00:18]} 3. d4 {[%emt 0:00:05]} cxd4 {[%emt 0:00:08]} 4. Qd2 d3 5. Qxd3 Nf6 6. Qd4 Bg7 7. Be3 d6 8. f3 Be6 9. O-O-O Qb6 10. Nge2 Qa5 11. Kb1 Nbd7 12. Qd2 Bc4 13. Bh6 Bxh6 14. Qxh6 Rc8 15. Nd4 Bxf1 16. Rhxf1 Rxc3 17. bxc3 g5 18. h4 gxh4 19. Qxh4 Nb6 20. Qe1 Qa3 21. Ka1 Rg8 22. Rb1 Rxg2 23. Rb3 Qa5 24. Rg1 Qg5 25. Rxg2 Qxg2 26. Rxb6 axb6 27. e5 dxe5 28. Qxe5 Kd7 29. Nf5 Qg1+ 30. Kb2 Qc5 31. Qf4 Qxc3+ 32. Kb1 Nd5 33. Qe4 Qb4+ 34. Kc1 Qxe4 35. fxe4 Nc3 {[%emt 0:05:20]} 0-1

[Event "Charlotte Open 2024"]
[Site "Charlotte"]
[Date "2024.01.13"]
[Round "1.8"]
[White "Belenkaya, Dina"]
[Black "Ramesh, Rahul"]
[Result "1-0"]
[ECO "A07"]
[WhiteElo "2202"]
[BlackElo "1864"]
[Annotator "TA"]
[PlyCount "67"]
[EventDate "2024.01.05"]
[EventType "swiss"]
[EventCountry "USA"]
[SourceTitle "playchess.com"]
[Source "ChessBase"]
[SourceQuality "1"]
[TimeControl "6600+10"]

{[%evp 19,67,0,0,-5,-15,-51,-37,-62,-52,-69,-14,-20,-16,-12,0,-31,-6,-56,-45,-72,-32,-69,-75,-60,-12,-37,-32,-33,-35,-48,7,17,42,30,36,35,45,51,55,18,34,52,37,12,53,55,45,41,85,85]} 1. Nf3 {[%emt 0:01:10]} d5 {[%emt 0:02:31]} 2. g3 {[%emt 0:10:09]} Nf6 {[%emt 0:00:20]} 3. Bg2 {[%emt 0:00:23]} Bf5 {[%emt 0:02:07]} 4. d3 {[%emt 0:01:01]} h6 {[%emt 0:01:59]} 5. Nbd2 {[%emt 0:00:44]} e6 {[%emt 0:03:41]} 6. O-O {[%emt 0:00:49]} Be7 {[%emt 0:05:33]} 7. b3 {[%emt 0:02:40]} O-O {[%emt 0:02:46]} 8. Bb2 {[%emt 0:00:16]} c5 {[%emt 0:05:24]} 9. c4 {[%emt 0:03:03]} Nc6 {[%emt 0:02:29]} 10. cxd5 {[%emt 0:18:25]} exd5 {[%emt 0:01:00]} 11. Rc1 {[%emt 0:02:10]} d4 {[%emt 0:12:36]} 12. Ba3 {[%emt 0:08:40]} Qa5 {[%emt 0:03:33]} 13. Nc4 {[%emt 0:10:55] Black is slightly better.} Qa6 {[%emt 0:02:18]} 14. Bb2 {[%emt 0:05:40]} b5 {[%emt 0:08:27]} (14... Qxa2 $2 15. Ra1 $18) (14... Rad8 $1 $15) 15. Nce5 $11 {[%emt 0:01:06]} Nxe5 {[%emt 0:01:48]} (15... Qxa2 $2 16. Nxc6 Bd6 17. Qd2 $18) 16. Nxe5 {[%emt 0:00:01]} Rac8 {[%emt 0:00:59]} 17. a4 {[%emt 0:02:34]} Qe6 {[%emt 0:04:28]} 18. Nf3 {[%emt 0:01:16]} (18. e4 $1 $11) 18... bxa4 $15 {[%emt 0:03:03]} 19. bxa4 {[%emt 0:04:42]} Bh3 {[%emt 0:02:17]} 20. Ba3 {[%emt 0:02:55]} Bxg2 {[%emt 0:01:00]} 21. Kxg2 {[%emt 0:00:03]} Qd5 {[%emt 0:06:09]} (21... Nd5 $15 22. Qc2 h5) 22. Qc2 {[%emt 0:01:19]} Nd7 23. Kg1 {[%emt 0:00:10]} Rfe8 24. e4 {[%emt 0:00:10]} Qh5 ({Better is} 24... dxe3 $15 25. fxe3 Qb7) 25. Kg2 $11 {[%emt 0:00:10]} g5 (25... Qg4 {is interesting.} 26. Rb1 c4 27. h3 Qe6) 26. h3 {[%emt 0:00:10]} Qg6 27. Rb1 {[%emt 0:00:10][%cal Bc1b1,Bb1b5,Bb5a5,Ba5a4,Ba4d4][%mdl 32]} Qa6 {Prevents Rb7} 28. Rb5 {[%emt 0:00:10]} Nb6 29. Ne5 {[%emt 0:00:10][%cal Of2f4] Black should prevent f4!} (29. Bxc5 $2 {too greedy.} Nxa4 (29... Qxa4 $2 {is the wrong capture.} 30. Qxa4 Nxa4 31. Bxa7 $18) 30. Qc4 Rxc5 $19 (30... Bxc5 31. Ra1 $11)) 29... Qxa4 30. Qxa4 {[%emt 0:00:10]} Nxa4 31. Ra5 {[%emt 0:00:10][%csl LRa4,LRa7]} Bd8 32. Rxa4 {[%emt 0:00:10]} Rxe5 33. Rc1 {[%emt 0:00:10]} Bb6 34. Rxd4 {[%emt 0:00:10] Weighted Error Value: White=0.15 (very precise) /Black=0.18 (very precise) .  Mistake:       	White=1     	Black=3      Inaccurate:     	White=5     	Black=3      OK:         	White=7     	Black=7      Best:        	White=1     	Black=1} 1-0

[Event "Charlotte Open 2024"]
[Site "Charlotte"]
[Date "2024.01.13"]
[Round "1.9"]
[White "Botez, Andrea"]
[Black "Karthigeyan, Kishan"]
[Result "1-0"]
[ECO "D00"]
[WhiteElo "1709"]
[BlackElo "1562"]
[Annotator "NA"]
[PlyCount "43"]
[EventDate "2024.01.05"]
[EventType "swiss"]
[EventCountry "USA"]
[SourceTitle "playchess.com"]
[Source "ChessBase"]
[SourceQuality "1"]
[TimeControl "6600+10"]

1. d4 {[%emt 0:12:37]} d5 {[%emt 0:10:10]} 2. Nc3 {[%emt 0:00:08]} Nf6 {[%emt 0:00:07]} 3. Bf4 {[%emt 0:00:09]} a6 {[%emt 0:00:09]} 4. e3 {[%emt 0:00:20]} e6 {[%emt 0:00:19]} 5. Bd3 {[%emt 0:00:17]} c5 {[%emt 0:00:18]} 6. dxc5 {[%emt 0:00:14]} Bxc5 {[%emt 0:00:12]} 7. Nf3 {[%emt 0:00:10]} Nc6 {[%emt 0:00:16]} 8. O-O {[%emt 0:00:16]} O-O {[%emt 0:00:09]} 9. e4 {[%emt 0:00:22]} dxe4 {[%emt 0:04:00]} 10. Nxe4 {[%emt 0:00:39]} Nxe4 {[%emt 0:01:09]} 11. Bxe4 {[%emt 0:00:04]} Qf6 {[%emt 0:01:20]} 12. Qc1 {[%emt 0:07:47]} h6 {[%emt 0:03:44]} 13. c3 {[%emt 0:03:50]} Re8 {[%emt 0:14:23]} 14. Re1 {[%emt 0:04:45]} Bd7 {[%emt 0:02:15]} 15. Bg3 {[%emt 0:00:47]} Qe7 {[%emt 0:10:09]} 16. Qc2 {[%emt 0:02:01]} Rac8 {[%emt 0:05:31]} 17. Rad1 {[%emt 0:00:57]} f6 {[%emt 0:13:18]} 18. Bh7+ {[%emt 0:06:16]} Kh8 {[%emt 0:01:57]} 19. Nh4 {[%emt 0:00:35]} Qd8 {[%emt 0:01:03]} 20. Rxd7 {[%emt 0:00:58]} Qb6 {[%emt 0:01:17]} 21. Ng6+ {[%emt 0:00:41]} Kxh7 {[%emt 0:00:21]} 22. Nf8+ {[%emt 0:00:09]} 1-0

[Event "Charlotte Open 2024"]
[Site "Charlotte"]
[Date "2024.01.13"]
[Round "1.10"]
[White "Chasin, Nico"]
[Black "Fang, Thomas"]
[Result "1-0"]
[ECO "E04"]
[WhiteElo "2437"]
[BlackElo "1856"]
[Annotator "ChessBase"]
[PlyCount "62"]
[EventDate "2024.01.05"]
[EventType "swiss"]
[EventCountry "USA"]
[SourceTitle "playchess.com"]
[Source "ChessBase"]
[SourceQuality "1"]
[TimeControl "6600+10"]

1. d4 {[%emt 0:08:41]} Nf6 {[%emt 0:00:15]} 2. c4 {[%emt 0:00:05]} e6 {[%emt 0:00:11]} 3. Nf3 {[%emt 0:00:04]} d5 {[%emt 0:00:12]} 4. g3 {[%emt 0:00:05]} dxc4 {[%emt 0:00:28]} 5. Bg2 {[%emt 0:00:10]} c5 {[%emt 0:00:09]} 6. O-O {[%emt 0:00:20]} Nc6 {[%emt 0:00:13]} 7. Qa4 {[%emt 0:02:35]} Bd7 {[%emt 0:03:41]} 8. Qxc4 {[%emt 0:01:12]} b5 {[%emt 0:01:03]} 9. Qd3 {[%emt 0:00:05]} c4 {[%emt 0:03:38]} 10. Qd1 {[%emt 0:02:58]} Rc8 {[%emt 0:23:12]} 11. b3 {[%emt 0:00:10]} Bd6 {[%emt 0:00:10]} 12. bxc4 {[%emt 0:02:32]} bxc4 {[%emt 0:00:58]} 13. Ba3 {[%emt 0:00:46]} Qe7 {[%emt 0:02:54]} 14. Bxd6 {[%emt 0:00:11]} Qxd6 {[%emt 0:00:06]} 15. Nc3 {[%emt 0:00:03]} O-O {[%emt 1:15:30]} 16. e3 {[%emt 0:01:31]} Qb4 {[%emt 0:00:00]} 17. Qc2 {[%emt 0:01:01]} Qa5 {[%emt 0:00:00]} 18. a3 {[%emt 0:00:10]} Rfd8 {[%emt 0:00:00]} 19. Rfb1 {[%emt 0:00:10]} Be8 {[%emt 0:00:00]} 20. Nd2 {[%emt 0:00:10]} Qc7 {[%emt 0:00:00]} 21. Nce4 {[%emt 0:00:10]} Nxe4 {[%emt 0:00:00]} 22. Bxe4 {[%emt 0:00:10]} f5 {[%emt 0:00:00]} 23. Bg2 {[%emt 0:19:57]} Na5 {[%emt 0:00:00]} 24. Qc3 {[%emt 0:00:27]} Ba4 {[%emt 0:00:00]} 25. Rb4 Bb3 {[%emt 0:00:00]} 26. Rb5 {[%emt 0:00:20]} Nc6 {[%emt 0:00:00]} 27. Nxb3 {[%emt 0:00:10]} cxb3 {[%emt 0:00:00]} 28. Qxb3 {[%emt 0:00:10]} Qd6 {[%emt 0:00:00]} 29. Rxf5 {[%emt 0:04:37]} Kh8 {[%emt 0:00:00]} 30. Rc5 {[%emt 0:00:10]} Nxd4 {[%emt 0:00:00]} 31. exd4 {[%emt 0:00:10]} Qxd4 {[%emt 0:00:00]} 1-0